{"text_format":"1","workbook":"xlsx","n_sheets":4,"sheets":["Vendor Worksheet Instructions","Vendor Worksheet","Certification Instructions","Vendor Summary & Certification"],"not_rendered":{"charts":0,"images":2,"macros":1,"external_links":0,"defined_names":5,"comments":0,"pivot_tables":0},"unopened":[],"bounds":{"document_bytes":16777216,"sheet_cells":100000,"rows_first":2000,"rows_last":500,"rows_between":2000,"halvings":0,"cell_chars":16384,"cell_head_chars":4096},"cells_cut":0,"cells_raw":0,"read":"whole","date_system":"1900"}

{"sheet":"Vendor Worksheet Instructions","index":0,"n_rows":85,"n_cols":2,"rows_kept":85,"cut":false,"hidden":false,"merged":[[40,1,40,8],[36,1,36,8],[3,0,3,8],[30,1,30,8],[38,0,39,8],[15,1,15,8],[13,1,13,8],[21,1,22,8],[24,1,25,8],[19,1,19,8],[4,0,4,8],[69,1,69,8],[52,1,52,8],[59,1,59,8],[42,1,42,8],[44,1,44,8],[46,1,46,8],[56,1,56,8],[58,1,58,8],[67,1,67,8],[63,1,63,8],[65,1,65,8],[84,0,84,8],[74,1,74,8],[76,1,76,8],[78,1,78,8],[80,1,80,8],[82,0,82,8]]}
["SB 3 MINIMUM WAGE 2022 RATE ADJUSTMENT - COMMUNITY-BASED DAY and WORK ACTIVITY PROGRAMS "]
["WORKSHEET INSTRUCTIONS "]
[]
["These instructions are for the Vendor Worksheet.  After you read these instructions, please go to the “Vendor Worksheet” tab to begin.  You will ONLY be able to fill-in and select from the shaded fields on this worksheet.  The information you submit on this worksheet will be reviewed by the Department of Developmental Services (Department).  If additional information is needed, the Department will contact you.  After the review, the Department will respond to your request accordingly."]
["100% Traditional Services or Traditional/Alternative Services Mix Workbook"]
["SECTION A:  PROGRAM INFORMATION"]
[]
["Row 1","Please enter the Service Provider Name."]
[]
["Row 2","Please enter the Vendor Number."]
[]
["Row 3","Please enter the three-digit Service Code."]
[]
["Row 4","Please enter the dates for the beginning and end of a review period of 3 consecutive months from January through December 2021.  If you have been recently vendored and have less than 3 months of payroll and billing data, please enter the dates for an applicable review period of up to 3 months from January through December 2021."]
[]
["Row 5","Employers with 25 or less employees are required to pay the increased minimum wage of 14.00 per hour and Employers with 26 or more employees are required to pay the increased minimum wage of 15.00 per hour, both effective January 1, 2022.  Make selection to indicate that you employ either 25 or less employees or 26 or more employees in total, factoring in all locations and services.  However, only employees/hours worked delivering services under the vendor number/service code above can be included in this rate adjustment request.   Vendors that operate multiple services must submit separate rate adjustment requests for each service and must ensure there is no duplication of reported employment hours across different services.\n\n"]
[]
["Row 6","Please enter the Staffing Ratio."]
[]
["Row 7","Using the drop down select Yes or No if you provided 100% traditional services during the 3 month review period. If Yes is selected, the rows related to Alternative Services will be blocked as they are not applicable."]
[]
["Row 8 (A through C)","Please enter the number of enrolled consumers who received services using the Traditional Services rate during the selected three month period."]
[]
[]
["Row 9 (A through C)","If applicable, please enter the number of enrolled consumers who received services using the Alternative Services rate during the selected three month period. "]
[]
[]
["Row 10","Consumer count information will populate automatically here."]
[]
[]
["Rows 11 & 14","Please enter the current Traditional Services and Alternative Services (if applicable) rate and select the Unit Type, either Daily or Hourly, from the drop-down list in Column \"H\" for the Traditional rate."]
[]
["Rows 12,13, 15,16","Rate information will populate automatically here."]
[]
["Row 17","Select the Vendoring Regional Center from the drop-down list."]
[]
["Row 18-21","Select the User Regional Center(s), if applicable, from the drop-down list.  If you need to list additional user regional centers, please add rows by clicking as instructed on the designated button."]
[]
["SECTION B:  EMPLOYEE WAGE INFORMATION"]
[]
["Column A","Please enter the name or initials of the employed staff who were paid during the review period, followed by their position title.  For any employee/position who received two or more different hourly wages during the review period being reported, please list only the most current wage paid with the requested information in columns B through I.  If additional rows are needed, please click on the designated button.  PLEASE NOTE:  Only employees of the vendor number and service code listed above in Rows 2 and 3 above are to be listed in Section B: Employee Wage Information."]
[]
[null,"DO NOT include staff who are providing these services that are funded by another source, such as through a contract with a school district.  Also, DO NOT include wages paid to consumers while receiving these services or any worker who is paid through other sources such as contract funding. Additionally, DO NOT include supplemental staff hours that are spent with non-mobile consumers, these hours are reimbursed through the supplemental rate. "]
[]
["Column B","Please enter the Position Title of the Employee."]
[]
["Column C","Please enter the current Hourly Wage paid to the employee(s) reported during the Review Period."]
[]
["Columns D - G","Wage information will calculate automatically here."]
[]
["Column H","Please enter the Workers' Compensation Insurance Employer Rate as a percentage."]
[]
["Column I","Please enter your Total Unemployment Insurance contribution rate as a percentage, including the net Federal and State rates, and the Employment Training Tax.  (Refer to your Form DE-2088 that you receive from the State of California Employment Development Department (EDD) for your contribution rates for Unemployment Insurance and Employment Training Tax.) "]
[]
["Column J","Wage information will calculate automatically here."]
[]
["Column K","Please enter the actual Total Hours Worked or Paid During the Review Period by each of the reported employee(s)."]
[]
["Column L","The cost of the rate adjustment will calculate automatically here."]
[null,"If less than a 3 month period, Section A Row 4,  Department Staff will adjust the calculation as needed."]
[]
["SECTIONS C:  RATE ADJUSTMENT CALCULATION (Tradtional Services Rate)"]
[]
["Row 1","Total wages, payroll taxes, workers' compensation, and other mandated employer costs applicable to the Traditional Services rate will calculate automatically here. "]
[]
["Row 2","Total Number of Units of Services Billed to all Regional Centers during the 3 month period will calculate automatically here."]
[]
["Rows 3 - 9","Please select the individual regional center(s) billed in the Review Period and enter the total units billed (USING THE TRADITIONAL SERVICES RATE) in the Review Period for the selected regional center(s).  If you need to list additional regional centers, please click the designated button."]
[]
["Row 10","The rate change will calculate automatically here and populate Row 12 in Section A, Program Information."]
[]
[]
["SECTION D:  RATE ADJUSTMENT CALCULATION  (Alternative Services Rate)"]
[]
["Row 1","Total wages, payroll taxes, workers' compensation, and other mandated employer costs applicable to the Alternative Services rate will calculate automatically here."]
[]
["Row 2","Total Number of Units of Services Billed to all Regional Centers during the 3 month period will calculate automatically here."]
[]
["Rows 3 - 9","Please select the individual regional center(s) billed in the Review Period and enter the total units billed (USING THE ALTERNATIVE SERVICES RATE) in the Review Period for the selected regional center(s).  If you need to list additional regional centers, please click the designated button."]
[]
["Row 10","The rate change will calculate automatically here and populate Row 15 in Section A, Program Information."]
[]
["Please review ALL the information you have entered on the worksheet, and specifically rows 4 - 14 in Section A, and rows 10 in Section C & D.  These rows should have calculated rate information based on the data you have entered.  If there is an error message in these rows, you may need to re-enter the information in Sections B, C, and/or D."]
[]
["Before submitting, please save your workbook using the vendor number in the title of the file.  Failure to do so results in the submission of an empty workbook."]

{"sheet":"Vendor Worksheet","index":1,"n_rows":153,"n_cols":13,"rows_kept":153,"cut":false,"hidden":false,"merged":[[16,2,16,7],[14,2,14,7],[29,2,29,7],[30,2,30,7],[7,2,7,7],[13,2,13,7],[12,2,12,7],[20,3,20,6],[21,3,21,6],[22,3,22,6],[18,2,18,7],[17,2,17,7],[26,2,26,7],[27,2,27,7],[28,2,28,7],[10,2,10,7],[4,2,4,7],[5,2,5,7],[6,2,6,7],[9,2,9,7],[8,2,8,7],[23,3,23,6],[36,10,39,10],[36,11,39,11],[36,12,39,12],[38,1,39,1],[36,9,39,9],[36,8,39,8],[36,2,39,2],[36,3,39,3],[36,4,39,4],[36,5,39,5],[36,6,39,6],[36,7,39,7]]}
["SB 3 MINIMUM WAGE 2022 RATE ADJUSTMENT - COMMUNITY-BASED DAY and WORK ACTIVITY PROGRAMS "]
["Effective January 1, 2022 - California Minimum Wage Increases to $14.00 per hour for Service Providers Employing 25 or less Employees AND $15.00 for Service Providers Employing 26 or more Employees"]
[]
["SECTION A:  PROGRAM INFORMATION",null,"(You will ONLY be able to fill-in and select from the shaded fields on this worksheet)"]
[1,"Service Provider Name"]
[2,"Vendor Number"]
[3,"Service Code"]
[4,"Three month review period between January-December 2021: (Enter Beginning & End) "]
[5,"Select 25 or Less OR 26 or More Employees from Drop Down:"]
[6,"Staffing Ratio"," "]
[7,"Were 100% of services provided using the Traditional Services rate?"]
[8,"Avg. Number of Enrolled Consumers - Traditional Services",{"$f":"ROUND(SUM(C13:C15)/3,2)","v":0},"Cost Allocation:",{"$f":"ROUND(C12/SUM(C12,C16),3)","v":{"$error":"#DIV/0!"}}]
["8A","Consumers Served Month 1 "]
["8B","Consumers Served Month 2"]
["8C","Consumers Served Month 3"]
[9,"Avg. Number of Enrolled Consumers - Alternative Services",{"$f":"ROUND(SUM(C17:C19)/3,2)","v":0},"Cost Allocation:",{"$f":"ROUND(C16/SUM(C16,C12),3)","v":{"$error":"#DIV/0!"}}]
["9A","Consumers Served Month 1 "]
["9B","Consumers Served Month 2"]
["9C","Consumers Served Month 3"]
[10,"Total:",{"$f":"SUM(C16,C12)","v":0},null,{"$f":"SUM(E12,E16)","v":{"$error":"#DIV/0!"}}]
[11,"Current Traditional Services Rate:",null,"Select Unit Type: "]
[12," Rate Adjustment:",{"$f":"H87","v":0}]
[13," New Traditional Rate:",{"$f":"C21+C22","v":0}]
[14,"Current Alternative Services Rate:",null,"Unit Type: ",null,null,null,"Monthly"]
[15," Rate Adjustment:",{"$f":"H99","v":0}]
[16," New Alternative Rate:",{"$f":"+C24+C25","v":0}]
[17,"Select Vendoring Regional Center from Drop Down Menu"]
[18,"Select User Regional Centers from Drop Down Menu"]
[19,"Select User Regional Centers"]
[20,"Select User Regional Centers"]
[21,"Select User Regional Centers"]
[]
[]
[]
["SECTION B:  EMPLOYEE WAGE INFORMATION"]
[null,"A","B","C","D","E ","F","G","H","I","J","K","L"]
[null,"Name or Initials of Staff Employee(s)","Position Title","Current Hourly Wage","New Hourly Wage","Hourly Wage Change","Employer Social Security Tax @ 6.2%","Employer Medicare Tax @1.45%","Workers Compensation as a %","Unemploy. Insurance \nas a %","Wage Adjustment plus Mandated Payroll Costs","Hours Worked/Paid During \n3 Month Review Period","Cost of Rate Adjustment \n(3 Month Period)"]
[]
["Row","(Please See Instructions for Listing Employees Receiving more than One Wage)"]
["#"]
[1,null,null,null,{"$f":"IF($C$9=\"25 or less\",IF(AND(D41>=13,D41<=13.99),14,0),IF($C$9=\"26 or more\",IF(AND(D41>=14,D41<=14.99),15,0),0))","v":0},{"$f":"IF(E41-D41>0,E41-D41,0)","v":0},{"$f":"F41*0.062","v":0},{"$f":"F41*0.0145","v":0},null,null,{"$f":"ROUND((SUM(F41+G41+H41)+(F41*I41)+(F41*J41)),2)","v":0},null,{"$f":"SUM(K41*L41)","v":0}]
[2,null,null,null,{"$f":"IF($C$9=\"25 or less\",IF(AND(D42>=13,D42<=13.99),14,0),IF($C$9=\"26 or more\",IF(AND(D42>=14,D42<=14.99),15,0),0))","v":0},{"$f":"IF(E42-D42>0,E42-D42,0)","v":0},{"$f":"F42*0.062","v":0},{"$f":"F42*0.0145","v":0},null,null,{"$f":"ROUND((SUM(F42+G42+H42)+(F42*I42)+(F42*J42)),2)","v":0},null,{"$f":"SUM(K42*L42)","v":0}]
[3,null,null,null,0,0,0,0,null,null,0,null,0]
[4,null,null,null,0,0,0,0,null,null,0,null,0]
[5,null,null,null,0,0,0,0,null,null,0,null,0]
[6,null,null,null,0,0,0,0,null,null,0,null,0]
[7,null,null,null,0,0,0,0,null,null,0,null,0]
[8,null,null,null,0,0,0,0,null,null,0,null,0]
[9,null,null,null,0,0,0,0,null,null,0,null,0]
[{"$f":"A49+1","v":10},null,null,null,0,0,0,0,null,null,0,null,0]
[11,null,null,null,0,0,0,0,null,null,0,null,0]
[12,null,null,null,0,0,0,0,null,null,0,null,0]
[13,null,null,null,0,0,0,0,null,null,0,null,0]
[14,null,null,null,0,0,0,0,null,null,0,null,0]
[15,null,null,null,0,0,0,0,null,null,0,null,0]
[16,null,null,null,0,0,0,0,null,null,0,null,0]
[17,null,null,null,0,0,0,0,null,null,0,null,0]
[18,null,null,null,0,0,0,0,null,null,0,null,0]
[19,null,null,null,0,0,0,0,null,null,0,null,0]
[20,null,null,null,0,0,0,0,null,null,0,null,0]
[21,null,null,null,0,0,0,0,null,null,0,null,0]
[22,null,null,null,0,0,0,0,null,null,0,null,0]
[23,null,null,null,0,0,0,0,null,null,0,null,0]
[24,null,null,null,0,0,0,0,null,null,0,null,0]
[25,null,null,null,0,0,0,0,null,null,0,null,0]
[26,null,null,null,0,0,0,0,null,null,0,null,0]
[27,null,null,null,0,0,0,0,null,null,0,null,0]
[28,null,null,null,0,0,0,0,null,null,0,null,0]
[29,null,null,null,0,0,0,0,null,null,0,null,0]
[{"$f":"A69+1","v":30},null,null,null,0,0,0,0,null,null,0,null,0]
[{"$f":"A70+1","v":31},null,null,null,0,0,0,0,null,null,0,null,0]
[" ",null,null,null,null,null,null,null,"Totals",null,{"$f":"SUM(K41:K71)","v":0},{"$f":"SUM(L41:L71)","v":0},0]
[null," "]
[]
[]
[]
["SECTION C:  RATE ADJUSTMENT CALCULATION (Traditional Services Rate)"]
[1,null,null,null,null,null,"Total Cost of the Minimum Wage Adjustment for the Review Period:",{"$f":"ROUND((E12*M72),2)","v":{"$error":"#DIV/0!"}}]
[2,null,null,null,null,null,"Number of Units of Services Billed to all Regional Centers for the Review Period:",{"$f":"IF(C12=0,0,SUM(H80:H86))","v":0}]
[3,"Select Regional Center from Drop Down Menu:",null,null,null,null,"Enter Total No. of Traditional Service Units for Review Period"]
[4,"Select Regional Center:",null,null,null,null,"Enter Total No. of Traditional Service Units for Review Period"]
[5,"Select Regional Center:",null,null,null,null,"Enter Total No. of Traditional Service Units for Review Period"]
[6,"Select Regional Center:",null,null,null,null,"Enter Total No. of Traditional Service Units for Review Period"]
[7,"Select Regional Center:",null,null,null,null,"Enter Total No. of Traditional Service Units for Review Period"]
[8,"Select Regional Center:",null,null,null,null,"Enter Total No. of Traditional Service Units for Review Period"]
[9,"Select Regional Center:",null,null,null,null,"Enter Total No. of Traditional Service Units for Review Period"]
[10,"Rate Change (Section C, Row 1: Total Cost of Minimum Wage Adjustment/Section C, Row 2: Units of Service Billed to all Regional Centers)",null,null,null,null,null,{"$f":"IFERROR(ROUND(H78/H79,2),0)","v":0}]
[]
["SECTION D:  RATE ADJUSTMENT CALCULATION (Alternative Services Rate)"]
[1,null,null,null,null,null,"Total Cost of the Minimum Wage Adjustment for the Review Period:",{"$f":"ROUND((E16*M72),2)","v":{"$error":"#DIV/0!"}}]
[2,null,null,null,null,null,"Number of Units of Services Billed to all Regional Centers for the Review Period:",{"$f":"IF(C16=0,0,SUM(H92:H98))","v":0}]
[3,"Select Regional Center:",null,null,null,null,"Enter Total No. of Alt Services Units for Review Period"]
[4,"Select Regional Center:",null,null,null,null,"Enter Total No. of Alt Services Units for Review Period"]
[5,"Select Regional Center:",null,null,null,null,"Enter Total No. of Alt Services Units for Review Period"]
[6,"Select Regional Center:",null,null,null,null,"Enter Total No. of Alt Services Units for Review Period"]
[7,"Select Regional Center:",null,null,null,null,"Enter Total No. of Alt Services Units for Review Period"]
[8,"Select Regional Center:",null,null,null,null,"Enter Total No. of Alt Services Units for Review Period"]
[9,"Select Regional Center:",null,null,null,null,"Enter Total No. of Alt Services Units for Review Period"]
[10,"Rate Change (Section D, Row 1: Total Cost of Minimum Wage Adjustment/Section C, Row 2: Units of Service Billed to all Regional Centers)",null,null,null,null,null,{"$f":"IFERROR(+ROUND(H90/H91,2),0)","v":0}]
[]
[]
[]
[]
[]
[]
[]
[]
[]
[]
[]
[]
[]
[]
[]
[]
[]
[]
[]
[]
[]
[]
["25 or less"]
["26 or more"]
[]
["Daily","Daily"]
["Hourly","Hourly"]
["Monthly","Monthly"]
["Other","Other"]
[]
["ACRC","ACRC"]
["CVRC","CVRC"]
["ELARC","ELARC"]
["FDLRC","FDLRC"]
["FNRC","FNRC"]
["GGRC","GGRC"]
["HRC","HRC"]
["IRC","IRC"]
["KRC","KRC"]
["NBRC","NBRC"]
["NLACRC","NLACRC"]
["RCEB","RCEB"]
["RCOC","RCOC"]
["RCRC","RCRC"]
["SARC","SARC"]
["SCLARC","SCLARC"]
["SDRC","SDRC"]
["SGPRC","SGPRC"]
["TCRC","TCRC"]
["VMRC","VMRC"]
["WRC","WRC"]
[]
["Yes","Yes"]
["No","No"]

{"sheet":"Certification Instructions","index":2,"n_rows":28,"n_cols":1,"rows_kept":28,"cut":false,"hidden":false,"merged":[[24,0,24,8],[25,0,25,8],[27,0,27,8],[13,0,13,8],[16,0,16,8],[18,0,18,8],[21,0,21,8],[22,0,22,8],[23,0,23,8],[11,0,11,8],[3,0,3,8],[5,0,5,8],[7,0,7,8],[9,0,9,8]]}
["SB 3 MINIMUM WAGE 2022 RATE ADJUSTMENT - COMMUNITY-BASED DAY and WORK ACTIVITY PROGRAMS"]
["SUMMARY & CERTIFICATION INSTRUCTIONS "]
[]
["These instructions are for the Vendor Summary & Certification.   After you read these instructions, please go to the “Vendor Summary & Certification” tab.  Please review the Program Information and enter the service address associated with the information submitted on this workbook.  If your program has a different mailing address than the service address, please enter this information."]
[]
["Please enter the requested Contact Information for the individual responsible for completing this workbook.  This information will include Contact Name, Contact Phone Number, Email Address, and Executive Director/Owner."]
[]
["Please review the current rate, proposed rate change, and the proposed new rate, which are calculated based on the information you have entered on the worksheet.  If there is an error message in the rate information, go back and review the information in the worksheet. "]
[]
["We ask that you save this workbook using your vendor number and service code in the title of the file name.  For example, \"H12345 510.xlsm\", then email the workbook to the Department at \"rateadjustrequest@dds.ca.gov” by hitting the “SUBMIT” button on the bottom of the Vendor Summary & Certification worksheet.  If the workbook is not saved prior to hitting submit, the worksheet will be transmitted as a blank.  Please contact the Department if you do not receive a confirmation email after submitting the workbook.  Also, if your email is NOT Outlook, the \"SUBMIT\" button will not work.  If this applies to you, please save your workbook and send as an attachment to rateadjustrequest@dds.ca.gov using your email.  Please ensure you submit a copy to the vendoring regional center and to keep copies for your records."]
[]
["PLEASE NOTE:  By clicking the “I AGREE” checkbox near the bottom of the “Vendor Summary & Certification” worksheet, you certify that the information provided to the Department is specific to payroll costs necessary to meet the requirements of the minimum wage increase effective January 1, 2022.  You additionally certify to the best of your knowledge and belief that the information submitted is true and correct, and subject to verification by all record keeping and audit processes, procedures, and guidelines under the Lanterman Act and Title 17 of the California Code of Regulations (CCR)."]
[]
["You must retain ALL backup documentation which supports the information being submitted in this workbook.  The backup information for the information provided on this workbook is subject to all record keeping and audit processes, procedures, and guidelines under the Lanterman Act and Title 17, CCR.  "]
[" "]
["EMAIL ADDRESS:"]
["rateadjustrequest@dds.ca.gov"]
[]
["OR"]
[]
["MAILING ADDRESS:"]
["California Department of Developmental Services"]
["Rates and Fiscal Support Section"]
["Attention:  Ann Stigelmayer, Assistant Chief"]
["P.O. Box 944202"]
["Sacramento, CA  94244-2020"]
[]
["(916) 654-2300"]

{"sheet":"Vendor Summary & Certification","index":3,"n_rows":48,"n_cols":7,"rows_kept":48,"cut":false,"hidden":false,"merged":[[2,0,2,8],[25,2,25,5],[34,0,39,8],[42,0,42,8],[44,4,44,6],[45,0,45,3],[45,5,45,7],[24,2,24,5],[5,2,5,5],[10,2,10,5],[11,2,11,5],[12,2,12,5],[13,2,13,5],[15,2,15,5],[16,2,16,5],[17,2,17,5],[18,2,18,5],[22,2,22,5],[23,2,23,5]]}
["SB 3 MINIMUM WAGE 2022 RATE ADJUSTMENT - COMMUNITY-BASED DAY and WORK ACTIVITY PROGRAMS"]
["SUMMARY & CERTIFICATION SHEET "]
["100% Traditional Services or Traditional/Alternative Services Mix Workbook"]
["PROGRAM INFORMATION"]
[]
["Service Provider Name:",null,{"$f":"'Vendor Worksheet'!C5:H5","v":0}]
["Vendor Number:",null,{"$f":"'Vendor Worksheet'!C6:H6","v":0}]
["Service Code:",null,{"$f":"'Vendor Worksheet'!C7:H7","v":0}]
["Number of Employees:",null,{"$f":"'Vendor Worksheet'!C9:H9","v":0}]
[]
["Service Address:"]
[]
[]
[]
[]
["Mailing Address:"]
["(if different than service address)"]
[]
[]
[]
["CONTACT INFORMATION"]
[null,null,"Individual Responsible for Completing Worksheet:"]
["Contact Name:"]
["Contact Phone Number:"]
["Email Address:"]
["Executive Director/Owner:"]
[]
["Alternative Services Rate",null,null,null,"Traditional Services Rate"]
["Current Rate:",null,{"$f":"'Vendor Worksheet'!C24","v":0},null,"Current Rate:",null,{"$f":"'Vendor Worksheet'!C21","v":0}]
["Proposed Rate Change:",null,{"$f":"'Vendor Worksheet'!C25","v":0},null,"Proposed Rate Change:",null,{"$f":"'Vendor Worksheet'!C22","v":0}]
["Proposed New Rate:",null,{"$f":"'Vendor Worksheet'!C26","v":0},null,"Proposed New Rate:",null,{"$f":"'Vendor Worksheet'!C23","v":0}]
["Unit Type:",null,{"$f":"'Vendor Worksheet'!H24","v":"Monthly"},null,"Unit Type:",null,{"$f":"Daily","v":0}]
[]
[]
["By checking the box below, I certify that the information provided to the Department is specific to payroll costs necessary to meet the requirements of the minimum wage increase effective January 1, 2022.  I additionally certify to the best of my knowledge and belief the information submitted is true and correct, and subject to verification by all record keeping and audit processes, procedures, and guidelines under the Lanterman Act and Title 17 of the California Code of Regulations.  "]
[]
[]
[]
[]
[]
[null,null,null,"I AGREE"]
[]
["Before clicking submit, please read the certification instructions page and save your workbook using your vendor number. If the workbook is not saved prior to hitting submit, the worksheet will be transmitted as a blank. Please contact the Department if you do not receive a confirmation email after submitting the workbook.  Also, if your email is NOT Outlook, the \"SUBMIT\" button will not work. If this applies to you, please save your workbook and send as an attachment to rateadjustrequest@dds.ca.gov using your email. "]
[]
[]
[]
[]
["Please keep a copy for your records and submit a copy to the vendoring regional center."]